fUSD/lending_fUSD_20240516
["ID","MTS","AMOUNT","RATE_DAILY","PERIOD"]
[327158143,1715865034475,-537.8,0.00010999,2]
[327158144,1715865034485,-537.8,0.00010999,2]
[327158145,1715865034495,-500.0,0.00010999,2]
[327158146,1715865034505,-500.0,0.00010999,2]
[327158147,1715865034515,-212.51499509,0.00010999,2]
[327158148,1715865034525,-500.0,0.00010999,2]
[327158149,1715865034534,-507.58,0.00010999,2]
[327158150,1715865034544,-507.58,0.00010999,2]
[327158151,1715865034554,-507.58,0.00010999,2]
[327158152,1715865034563,-500.0,0.00010999,2]
[327158153,1715865034574,-515.53855746,0.00010999,2]
[327158154,1715865034584,-500.0,0.00010999,2]
[327158155,1715865034594,-500.0,0.00010999,2]
[327158156,1715865034603,-500.0,0.00010999,2]
[327158157,1715865034614,-500.0,0.00010999,2]
[327158158,1715865034623,-500.0,0.00010999,2]
[327158159,1715865034633,-500.0,0.00010999,2]
[327158160,1715865034643,-500.0,0.00010999,2]
[327158161,1715865034652,-500.0,0.00010999,2]
[327158162,1715865034661,-500.0,0.00010999,2]
[327158163,1715865034670,-500.0,0.00010999,2]
[327158164,1715865034679,-500.0,0.00010999,2]
[327158165,1715865034688,-500.0,0.00010999,2]
[327158166,1715865034699,-500.0,0.00010999,2]
[327158167,1715865034709,-255.15121678,0.00010999,2]
[327158168,1715865034718,-500.0,0.00010999,2]
[327158169,1715865034727,-500.0,0.00010999,2]
[327158170,1715865034735,-500.0,0.00010999,2]
[327158171,1715865034744,-500.0,0.00010999,2]
[327158172,1715865034756,-500.0,0.00010999,2]
[327158173,1715865034764,-500.0,0.00010999,2]
[327158174,1715865034774,-247.39798755,0.00010999,2]
[327158175,1715865034784,-513.91,0.00010999,2]
[327158176,1715865034795,-500.0,0.00010999,2]
[327158177,1715865034805,-500.0,0.00010999,2]
[327158178,1715865034816,-500.0,0.00010999,2]
[327158179,1715865034827,-742.87,0.00010999,2]
[327158180,1715865034836,-500.0,0.00010999,2]
[327158181,1715865034846,-500.0,0.00010999,2]
[327158182,1715865034858,-1021.22,0.00010999,2]
[327158183,1715865034867,-500.0,0.00010999,2]
[327158184,1715865034876,-515.28914811,0.00010999,2]
[327158185,1715865034885,-500.0,0.00010999,2]
[327158186,1715865034896,-599.57,0.00010999,2]
[327158187,1715865034905,-500.0,0.00010999,2]
[327158188,1715865034915,-500.0,0.00010999,2]
[327158189,1715865034926,-500.0,0.00010999,2]
[327158190,1715865034935,-500.0,0.00010999,2]
[327158191,1715865034945,-500.0,0.00010999,2]
[327158192,1715865034955,-906.41,0.00010999,2]
[327158193,1715865034966,-500.0,0.00010999,2]
[327158194,1715865034975,-326.69019838,0.00010999,2]
[327158195,1715865034984,-500.0,0.00010999,2]
[327158196,1715865034994,-194.78651131,0.00010999,2]
[327158197,1715865035003,-500.0,0.00010999,2]
[327158198,1715865035013,-500.0,0.00010999,2]
[327158199,1715865035023,-500.0,0.00010999,2]
[327158200,1715865035032,-500.0,0.00010999,2]
[327158201,1715865035042,-437.09,0.00010999,2]
[327158202,1715865035052,-30000.0,0.00011,2]
[327158203,1715865035063,-403.93294972,0.00011,2]
[327158204,1715865035074,-202.50921342,0.00011001,2]
[327158205,1715865035083,-202.50921342,0.00011013,2]
[327158206,1715865035094,-202.50921342,0.00011024,2]
[327158207,1715865035103,-202.50921342,0.00011035,2]
[327158208,1715865035112,-202.50921342,0.00011046,2]
[327158209,1715865035121,-163.73,0.00011051,2]
[327158210,1715865035131,-165.17255466,0.00011054,2]
[327158211,1715865035141,-163.73,0.00011057,2]
[327158212,1715865035150,-202.50921342,0.00011057,2]
[327158213,1715865035159,-500.0,0.00011059,2]
[327158214,1715865035168,-20000.0,0.00011059,2]
[327158215,1715865035178,-216.26,0.00011059,2]
[327158216,1715865035187,-500.0,0.00011059,2]
[327158217,1715865035196,-500.0,0.00011059,2]
[327158218,1715865035205,-313.15633728,0.00011059,2]
[327158219,1715865035217,-500.0,0.00011059,2]
[327158220,1715865035226,-500.0,0.00011059,2]
[327158221,1715865035235,-500.0,0.00011059,2]
[327158222,1715865035244,-223.54477722,0.00011059,2]
[327158223,1715865035254,-504.4899487,0.00011059,2]
[327158224,1715865035263,-507.57090531,0.00011059,2]
[327158225,1715865035273,-500.0,0.00011059,2]
[327158226,1715865035282,-500.0,0.00011059,2]
[327158227,1715865035291,-500.0,0.00011059,2]
[327158228,1715865035301,-517.53,0.00011059,2]
[327158229,1715865035310,-500.0,0.00011059,2]
[327158230,1715865035319,-574.26,0.00011059,2]
[327158231,1715865035330,-500.0,0.00011059,2]
[327158232,1715865035340,-500.0,0.00011059,2]
[327158233,1715865035349,-661.47,0.00011059,2]
[327158234,1715865035358,-500.0,0.00011059,2]
[327158235,1715865035367,-719.0,0.00011059,2]
[327158236,1715865035377,-500.0,0.00011059,2]
[327158237,1715865035387,-500.0,0.00011059,2]
[327158238,1715865035396,-500.0,0.00011059,2]
[327158239,1715865035406,-500.0,0.00011059,2]
[327158240,1715865035415,-501.99900894,0.00011059,2]
[327158241,1715865035424,-500.0,0.00011059,2]
[327158242,1715865035433,-500.0,0.00011059,2]
[327158243,1715865035443,-500.0,0.00011059,2]
[327158244,1715865035452,-500.0,0.00011059,2]
[327158245,1715865035463,-500.0,0.00011059,2]
[327158246,1715865035472,-500.0,0.00011059,2]
[327158247,1715865035481,-500.0,0.00011059,2]
[327158248,1715865035490,-500.0,0.00011059,2]
[327158249,1715865035500,-242.05,0.00011059,2]
[327158250,1715865035509,-500.0,0.00011059,2]
[327158251,1715865035519,-500.0,0.00011059,2]
[327158252,1715865035528,-500.0,0.00011059,2]
[327158253,1715865035537,-500.0,0.00011059,2]
[327158254,1715865035547,-500.0,0.00011059,2]
[327158255,1715865035556,-500.0,0.00011059,2]
[327158256,1715865035567,-500.0,0.00011059,2]
[327158257,1715865035576,-500.0,0.0001106,2]
[327158258,1715865035585,-537.8,0.0001106,2]
[327158259,1715865035595,-507.58,0.0001106,2]
[327158260,1715865035604,-500.0,0.0001106,2]
[327158261,1715865035613,-500.0,0.0001106,2]
[327158262,1715865035622,-2150.34,0.0001106,2]
[327158263,1715865035631,-500.0,0.0001106,2]
[327158264,1715865035640,-500.0,0.0001106,2]
[327158265,1715865035649,-500.0,0.0001106,2]
[327158266,1715865035658,-500.0,0.0001106,2]
[327158267,1715865035667,-500.0,0.0001106,2]
[327158268,1715865035677,-500.0,0.0001106,2]
[327158269,1715865035686,-500.0,0.0001106,2]
[327158270,1715865035695,-500.0,0.0001106,2]
[327158271,1715865035705,-500.0,0.0001106,2]
[327158272,1715865035716,-586.11,0.0001106,2]
[327158273,1715865035725,-500.0,0.0001106,2]
[327158274,1715865035735,-500.0,0.0001106,2]
[327158275,1715865035744,-558.09,0.0001106,2]
[327158276,1715865035754,-500.0,0.0001106,2]
[327158277,1715865035762,-500.0,0.0001106,2]
[327158278,1715865035772,-500.0,0.0001106,2]
[327158279,1715865035781,-500.0,0.0001106,2]
[327158280,1715865035792,-500.0,0.0001106,2]
[327158281,1715865035801,-562.33,0.0001106,2]
[327158282,1715865035815,-500.0,0.0001106,2]
[327158283,1715865035824,-1161.39,0.0001106,2]
[327158284,1715865035834,-432.04,0.0001106,2]
[327158285,1715865035843,-500.0,0.0001106,2]
[327158286,1715865035854,-500.0,0.0001106,2]
[327158287,1715865035863,-500.0,0.0001106,2]
[327158288,1715865035873,-2837.037618,0.00011061,2]
[327158289,1715865035883,-758.9437422,0.00011061,2]
[327158290,1715865035893,-2727.8987183,0.00011061,2]
[327158291,1715865035903,-37785.2327464,0.00011061,2]
[327158292,1715865035912,-2005.1434028,0.00011061,2]
[327158293,1715865035922,-41754.4514373,0.00011061,2]
[327158294,1715865035931,-649.66,0.00011062,2]
[327158295,1715865035941,-500.0,0.00011063,2]
[327158296,1715865035950,-537.8,0.00011063,2]
[327158297,1715865035959,-507.58,0.00011063,2]
[327158298,1715865035969,-500.0,0.00011063,2]
[327158299,1715865035978,-500.0,0.00011063,2]
[327158300,1715865035988,-500.0,0.00011063,2]
[327158301,1715865035997,-500.0,0.00011063,2]
[327158302,1715865036005,-500.0,0.00011063,2]
[327158303,1715865036015,-500.0,0.00011063,2]
[327158304,1715865036024,-500.0,0.00011063,2]
[327158305,1715865036033,-500.0,0.00011063,2]
[327158306,1715865036042,-500.0,0.00011063,2]
[327158307,1715865036052,-500.0,0.00011063,2]
[327158308,1715865036061,-855.1,0.00011063,2]
[327158309,1715865036070,-884.09,0.00011063,2]
[327158310,1715865036080,-500.0,0.00011063,2]
[327158311,1715865036089,-936.71,0.00011063,2]
[327158312,1715865036098,-500.0,0.00011063,2]
[327158313,1715865036107,-103750.45814437,0.00011064,2]
[327158314,1715865036117,-3677.50460953,0.00011065,2]
[327158315,1715865036126,-782.26025222,0.00011066,2]
[327158316,1715865036135,-535.41902389,0.00011066,2]
[327158317,1715865036145,-262.92731062,0.00011066,2]
[327158318,1715865036153,-155.02906429,0.00011066,2]
[327158319,1715865036163,-155.0,0.00011066,2]
[327158320,1715865036172,-1004.63658851,0.00011066,2]
[327158321,1715865036182,-155.0,0.00011066,2]
[327158322,1715865036193,-782.62056695,0.00011066,2]
[327158323,1715865036202,-321.34456172,0.00011066,2]
[327158324,1715865036215,-168.16,0.00011066,2]
[327158325,1715865036225,-537.8,0.00011066,2]
[327158326,1715865036234,-500.0,0.00011066,2]
[327158327,1715865036243,-507.58,0.00011066,2]
[327158328,1715865036251,-500.0,0.00011066,2]
[327158329,1715865036261,-500.0,0.00011066,2]
[327158330,1715865036270,-742.87,0.00011066,2]
[327158331,1715865036280,-1021.22,0.00011066,2]
[327158332,1715865036289,-906.41,0.00011066,2]
[327158333,1715865036299,-155.0,0.00011067,2]
[327158334,1715865036308,-1768.78624551,0.00011067,2]
[327158335,1715865036317,-537.8,0.00011067,2]
[327158336,1715865036328,-537.8,0.00011067,2]
[327158337,1715865036507,-537.8,0.00011067,2]
[327158338,1715865036517,-537.8,0.00011067,2]
[327158339,1715865036527,-537.8,0.00011067,2]
[327158340,1715865036536,-537.8,0.00011067,2]
[327158341,1715865036546,-500.0,0.00011067,2]
[327158342,1715865036556,-507.58,0.00011067,2]
[327158343,1715865036565,-507.58,0.00011067,2]
[327158344,1715865036574,-507.58,0.00011067,2]
[327158345,1715865036584,-507.58,0.00011067,2]
[327158346,1715865036594,-507.58,0.00011067,2]
[327158347,1715865036604,-507.58,0.00011067,2]
[327158348,1715865036614,-500.0,0.00011067,2]
[327158349,1715865036623,-500.0,0.00011067,2]
[327158350,1715865036632,-500.0,0.00011067,2]
[327158351,1715865036642,-500.0,0.00011067,2]
[327158352,1715865036651,-500.0,0.00011067,2]
[327158353,1715865036661,-500.0,0.00011067,2]
[327158354,1715865036670,-500.0,0.00011067,2]
[327158355,1715865036679,-500.0,0.00011067,2]
[327158356,1715865036688,-500.0,0.00011067,2]
[327158357,1715865036698,-500.0,0.00011067,2]
[327158358,1715865036708,-500.0,0.00011067,2]
[327158359,1715865036718,-500.0,0.00011067,2]
[327158360,1715865036728,-742.87,0.00011067,2]
[327158361,1715865036738,-500.0,0.00011067,2]
[327158362,1715865036748,-1021.22,0.00011067,2]
[327158363,1715865036757,-500.0,0.00011067,2]
[327158364,1715865036767,-906.41,0.00011067,2]
[327158365,1715865036777,-500.0,0.00011067,2]
[327158366,1715865036787,-530.93,0.00011067,2]
[327158367,1715865036796,-640.73481275,0.00011067,2]
[327158368,1715865036807,-2150.34,0.00011067,2]
[327158369,1715865036818,-500.0,0.00011067,2]
[327158370,1715865036829,-500.0,0.00011067,2]
[327158371,1715865036839,-517.53,0.00011067,2]
[327158372,1715865036848,-500.0,0.00011067,2]
[327158373,1715865036859,-574.26,0.00011067,2]
[327158374,1715865036869,-500.0,0.00011067,2]
[327158375,1715865036878,-500.0,0.00011067,2]
[327158376,1715865036888,-661.47,0.00011067,2]
[327158377,1715865036898,-500.0,0.00011067,2]
[327158378,1715865036908,-719.0,0.00011067,2]
[327158379,1715865036920,-190.64,0.00011067,2]
[327158380,1715865036930,-500.0,0.00011067,2]
[327158381,1715865036941,-500.0,0.00011067,2]
[327158382,1715865036952,-500.0,0.00011067,2]
[327158383,1715865036964,-500.0,0.00011067,2]
[327158384,1715865036973,-348.74,0.00011067,2]
[327158385,1715865036983,-500.0,0.00011067,2]
[327158386,1715865036993,-500.0,0.00011067,2]
[327158387,1715865037003,-500.0,0.00011067,2]
[327158388,1715865037013,-500.0,0.00011067,2]
[327158389,1715865037023,-586.11,0.00011067,2]
[327158390,1715865037032,-249.69,0.00011067,2]
[327158391,1715865037041,-500.0,0.00011067,2]
[327158392,1715865037051,-500.0,0.00011067,2]
[327158393,1715865037060,-500.0,0.00011067,2]
[327158394,1715865037070,-500.0,0.00011067,2]
[327158395,1715865037079,-558.09,0.00011067,2]
[327158396,1715865037089,-500.0,0.00011067,2]
[327158397,1715865037098,-855.1,0.00011067,2]
[327158398,1715865037108,-500.0,0.00011067,2]
[327158399,1715865037117,-500.0,0.00011067,2]
[327158400,1715865037127,-500.0,0.00011067,2]
[327158401,1715865037137,-500.0,0.00011067,2]
[327158402,1715865037146,-500.0,0.00011067,2]
[327158403,1715865037157,-562.33,0.00011067,2]
[327158404,1715865037167,-363.83,0.00011067,2]
[327158405,1715865037176,-500.0,0.00011067,2]
[327158406,1715865037186,-884.09,0.00011067,2]
[327158407,1715865037196,-500.0,0.00011067,2]
[327158408,1715865037208,-1161.39,0.00011067,2]
[327158409,1715865037223,-498.04,0.00011067,2]
[327158410,1715865037233,-500.0,0.00011067,2]
[327158411,1715865037243,-500.0,0.00011067,2]
[327158412,1715865037253,-500.0,0.00011067,2]
[327158413,1715865037262,-500.0,0.00011067,2]
[327158414,1715865037272,-500.0,0.00011067,2]
[327158415,1715865037281,-550.9917605,0.00011067,2]
[327158416,1715865037291,-328.67,0.00011067,2]
[327158417,1715865037300,-936.71,0.00011067,2]
[327158418,1715865037310,-500.0,0.00011067,2]
[327158419,1715865037320,-500.0,0.00011067,2]
[327158420,1715865037330,-161707.04824291,0.00011068,2]
[327158421,1715865037339,-74678.25849597,0.00011068,2]
[327158422,1715865037349,-1824.4024003,0.00011068,2]
[327158423,1715865037358,-200.0,0.00011068,2]
[327158424,1715865037367,-4594.27005244,0.00011068,2]
[327158425,1715865037377,-2312.0,0.00011068,2]
[327158426,1715865037387,-1045.0,0.00011068,2]
[327158427,1715865037397,-202.50921342,0.00011068,2]
[327158428,1715865037407,-500.0,0.00011069,2]
[327158429,1715865037417,-500.0,0.00011069,2]
[327158430,1715865037427,-504.08811112,0.00011069,2]
[327158431,1715865037437,-500.0,0.00011069,2]
[327158432,1715865037448,-500.0,0.00011069,2]
[327158433,1715865037458,-500.0,0.00011069,2]
[327158434,1715865037469,-586.11,0.00011069,2]
[327158435,1715865037479,-500.0,0.00011069,2]
[327158436,1715865037489,-500.0,0.00011069,2]
[327158437,1715865037498,-558.09,0.00011069,2]
[327158438,1715865037507,-500.0,0.00011069,2]
[327158439,1715865037517,-605.03,0.00011069,2]
[327158440,1715865037526,-500.0,0.00011069,2]
[327158441,1715865037536,-500.0,0.00011069,2]
[327158442,1715865037546,-500.0,0.00011069,2]
[327158443,1715865037555,-562.33,0.00011069,2]
[327158444,1715865037565,-500.0,0.00011069,2]
[327158445,1715865037575,-1161.39,0.00011069,2]
[327158446,1715865037584,-500.0,0.00011069,2]
[327158447,1715865037594,-500.0,0.00011069,2]
[327158448,1715865037604,-254.63056725,0.0001107,2]
[327158449,1715865037614,-500.0,0.0001107,2]
[327158450,1715865037624,-500.0,0.0001107,2]
[327158451,1715865037634,-517.53,0.0001107,2]
[327158452,1715865037644,-500.0,0.0001107,2]
[327158453,1715865037654,-574.26,0.0001107,2]
[327158454,1715865037664,-500.0,0.0001107,2]
[327158455,1715865037674,-500.0,0.0001107,2]
[327158456,1715865037684,-661.47,0.0001107,2]
[327158457,1715865037695,-500.0,0.0001107,2]
[327158458,1715865037704,-719.0,0.0001107,2]
[327158459,1715865037717,-500.0,0.0001107,2]
[327158460,1715865037727,-500.0,0.0001107,2]
[327158462,1715865037736,-500.0,0.0001107,2]
[327158463,1715865037746,-500.0,0.0001107,2]
[327158464,1715865037756,-181.32,0.0001107,2]
[327158465,1715865037766,-537.8,0.00011071,2]
[327158466,1715865037776,-500.0,0.00011071,2]
[327158467,1715865037789,-507.58,0.00011071,2]
[327158468,1715865037800,-500.0,0.00011071,2]
[327158469,1715865037813,-500.0,0.00011071,2]
[327158470,1715865037827,-742.87,0.00011071,2]
[327158471,1715865037837,-1021.22,0.00011071,2]
[327158472,1715865037848,-906.41,0.00011071,2]
[327158473,1715865037858,-2150.34,0.00011071,2]
[327158474,1715865037868,-500.0,0.00011071,2]
[327158475,1715865037878,-460.08,0.00011071,2]
[327158476,1715865037888,-500.0,0.00011071,2]
[327158478,1715865037899,-500.0,0.00011071,2]
[327158480,1715865037908,-500.0,0.00011071,2]
[327158481,1715865037919,-855.1,0.00011071,2]
[327158482,1715865037929,-884.09,0.00011071,2]
[327158483,1715865037938,-936.71,0.00011071,2]
[327158484,1715865037948,-500.0,0.00011071,2]
[327158485,1715865037959,-631.0,0.00011072,2]
[327158486,1715865037968,-2439.4026716,0.00011072,2]
[327158487,1715865037977,-2041.7677252,0.00011072,2]
[327158488,1715865037986,-652.5713232,0.00011072,2]
[327158489,1715865037995,-546.1989042,0.00011072,2]
[327158490,1715865038006,-2345.5605168,0.00011072,2]
[327158491,1715865038016,-1963.2223152,0.00011072,2]
[327158492,1715865038025,-32489.3110774,0.00011072,2]
[327158493,1715865038034,-27193.3894083,0.00011072,2]
[327158494,1715865038044,-1750.9394304,0.00011072,2]
[327158495,1715865038053,-1496.7354581,0.00011072,2]
[327158496,1715865038062,-36460.9909272,0.00011072,2]
[327158497,1715865038072,-31167.5304171,0.00011072,2]
[327158498,1715865038080,-1104.99765235,0.00011077,2]
[327158499,1715865038090,-882.41621094,0.00011077,2]
[327158500,1715865038099,-500.0,0.00011077,2]
[327158501,1715865038109,-500.0,0.00011077,2]
[327158502,1715865038118,-517.53,0.00011077,2]
[327158503,1715865038127,-500.0,0.00011077,2]
[327158504,1715865038136,-574.26,0.00011077,2]
[327158505,1715865038145,-500.0,0.00011077,2]
[327158506,1715865038155,-500.0,0.00011077,2]
[327158507,1715865038164,-661.47,0.00011077,2]
[327158508,1715865038173,-500.0,0.00011077,2]
[327158509,1715865038182,-719.0,0.00011077,2]
[327158510,1715865038192,-500.0,0.00011077,2]
[327158511,1715865038201,-444.71,0.00011077,2]
[327158512,1715865038212,-500.0,0.00011077,2]
[327158513,1715865038222,-500.0,0.00011077,2]
[327158514,1715865038231,-500.0,0.00011077,2]
[327158515,1715865038241,-586.11,0.00011077,2]
[327158516,1715865038251,-500.0,0.00011077,2]
[327158517,1715865038261,-500.0,0.00011077,2]
[327158518,1715865038270,-558.09,0.00011077,2]
[327158519,1715865038280,-500.0,0.00011077,2]
[327158520,1715865038290,-500.0,0.00011077,2]
[327158521,1715865038299,-500.0,0.00011077,2]
[327158522,1715865038309,-471.65,0.00011077,2]
[327158523,1715865038318,-500.0,0.00011077,2]
[327158524,1715865038329,-562.33,0.00011077,2]
[327158525,1715865038340,-500.0,0.00011077,2]
[327158526,1715865038350,-500.0,0.00011077,2]
[327158527,1715865038359,-1161.39,0.00011077,2]
[327158528,1715865038369,-500.0,0.00011077,2]
[327158529,1715865038379,-500.0,0.00011077,2]
[327158530,1715865038389,-500.0,0.00011077,2]
[327158531,1715865038399,-500.0,0.00011077,2]
[327158532,1715865038408,-209.94209332,0.00011078,2]
[327158533,1715865038418,-155.0,0.00011078,2]
[327158534,1715865038427,-198.01230819,0.00011078,3]
[327158535,1715865038437,-326.5426325,0.00011078,2]
[327158536,1715865038447,-204.49444067,0.00011078,2]
[327158537,1715865038458,-218.05512287,0.00011078,2]
[327158539,1715865038468,-5560.28685864,0.00011078,2]
[327158541,1715865038477,-1213.61919427,0.00011078,2]
[327158543,1715865038487,-4739.38262032,0.00011078,2]
[327158545,1715865038496,-207.2840544,0.00011078,2]
[327158547,1715865038505,-162.46980569,0.00011078,2]
[327158549,1715865038514,-155.0,0.00011078,2]
[327158551,1715865038524,-8688.90531315,0.00011078,2]
[327158553,1715865038533,-522.66900323,0.00011078,2]
[327158555,1715865038542,-237.10219524,0.00011078,2]
[327158557,1715865038551,-537.8,0.00011078,2]
[327158559,1715865038561,-537.8,0.00011078,2]
[327158561,1715865038570,-537.8,0.00011078,2]
[327158563,1715865038579,-256.84,0.00011078,2]
[327158565,1715865038588,-507.58,0.00011078,2]
[327158567,1715865038597,-507.58,0.00011078,2]
[327158569,1715865038608,-507.58,0.00011078,2]
[327158571,1715865038618,-500.0,0.00011078,2]
[327158573,1715865038627,-500.0,0.00011078,2]
[327158575,1715865038637,-500.0,0.00011078,2]
[327158577,1715865038647,-500.0,0.00011078,2]
[327158579,1715865038657,-500.0,0.00011078,2]
[327158581,1715865038667,-500.0,0.00011078,2]
[327158583,1715865038676,-151.0,0.00011078,2]
[327158585,1715865038685,-742.87,0.00011078,2]
[327158587,1715865038694,-1021.22,0.00011078,2]
[327158589,1715865038703,-906.41,0.00011078,2]
[327158591,1715865038715,-2150.34,0.00011078,2]
[327158593,1715865038724,-500.0,0.00011078,2]
[327158595,1715865038733,-500.0,0.00011078,2]
[327158597,1715865038741,-500.0,0.00011078,2]
[327158599,1715865038751,-517.53,0.00011078,2]
[327158601,1715865038760,-500.0,0.00011078,2]
[327158602,1715865038771,-574.26,0.00011078,2]
[327158605,1715865038781,-500.0,0.00011078,2]
[327158606,1715865038791,-661.47,0.00011078,2]
[327158609,1715865038800,-500.0,0.00011078,2]
[327158610,1715865038813,-719.0,0.00011078,2]
[327158613,1715865038824,-500.0,0.00011078,2]
[327158615,1715865038833,-500.0,0.00011078,2]
[327158617,1715865038844,-500.0,0.00011078,2]
[327158619,1715865038854,-486.96,0.00011078,2]
[327158621,1715865038863,-500.0,0.00011078,2]
[327158627,1715865038917,-500.0,0.00011078,2]
[327158629,1715865038926,-586.11,0.00011078,2]
[327158631,1715865038936,-500.0,0.00011078,2]
[327158633,1715865038945,-500.0,0.00011078,2]
[327158635,1715865038955,-500.0,0.00011078,2]
[327158637,1715865038965,-634.49,0.00011078,2]
[327158639,1715865038974,-500.0,0.00011078,2]
[327158641,1715865038983,-500.0,0.00011078,2]
[327158643,1715865038992,-558.09,0.00011078,2]
[327158645,1715865039002,-500.0,0.00011078,2]
[327158647,1715865039011,-855.1,0.00011078,2]
[327158649,1715865039021,-855.1,0.00011078,2]
[327158650,1715865039030,-500.0,0.00011078,2]
[327158651,1715865039040,-500.0,0.00011078,2]
[327158652,1715865039049,-500.0,0.00011078,2]
[327158653,1715865039058,-562.33,0.00011078,2]
[327158654,1715865039067,-500.0,0.00011078,2]
[327158655,1715865039077,-884.09,0.00011078,2]
[327158656,1715865039087,-884.09,0.00011078,2]
[327158657,1715865039096,-339.19982475,0.00011078,2]
[327158658,1715865039105,-1161.39,0.00011078,2]
[327158659,1715865039114,-500.0,0.00011078,2]
[327158660,1715865039123,-500.0,0.00011078,2]
[327158661,1715865039132,-500.0,0.00011078,2]
[327158662,1715865039142,-500.0,0.00011078,2]
[327158663,1715865039152,-936.71,0.00011078,2]
[327158664,1715865039161,-936.71,0.00011078,2]
[327158666,1715865039171,-500.0,0.00011078,2]
[327158667,1715865039180,-500.0,0.00011078,2]
[327158670,1715865039190,-16495.95129668,0.00011079,2]
[327158698,1715865039448,-10219.45385534,0.00011079,2]
[327158700,1715865039462,-29652.96069283,0.00011079,2]
[327158702,1715865039471,-151.0,0.00011079,2]
[327158704,1715865039480,-414.330483,0.00011079,2]
[327158706,1715865039489,-414.330483,0.00011079,2]
[327158708,1715865039498,-151.0,0.00011079,2]
[327158710,1715865039507,-537.8,0.00011079,2]
[327158712,1715865039516,-537.8,0.00011079,2]
[327158714,1715865039525,-537.8,0.00011079,2]
[327158716,1715865039535,-537.8,0.00011079,2]
[327158718,1715865039549,-537.8,0.00011079,2]
[327158720,1715865039559,-537.8,0.00011079,2]
[327158722,1715865039568,-537.8,0.00011079,2]
[327158724,1715865039578,-537.85681433,0.00011079,2]
[327158726,1715865039587,-507.58,0.00011079,2]
[327158728,1715865039596,-507.58,0.00011079,2]
[327158730,1715865039606,-507.58,0.00011079,2]
[327158732,1715865039616,-507.58,0.00011079,2]
[327158734,1715865039625,-507.58,0.00011079,2]
[327158736,1715865039635,-507.58,0.00011079,2]
[327158738,1715865039644,-507.58,0.00011079,2]
[327158740,1715865039654,-507.60683266,0.00011079,2]
[327158742,1715865039664,-500.0,0.00011079,2]
[327158744,1715865039674,-500.0,0.00011079,2]
[327158746,1715865039687,-500.0,0.00011079,2]
[327158748,1715865039698,-500.0,0.00011079,2]
[327158751,1715865039709,-319.73841007,0.00011079,2]
[327158752,1715865039722,-213.711548,0.00011079,2]
[327158754,1715865039732,-500.0,0.00011079,2]
[327158757,1715865039742,-500.0,0.00011079,2]
[327158759,1715865039752,-500.0,0.00011079,2]
[327158760,1715865039762,-500.0,0.00011079,2]
[327158762,1715865039771,-500.0,0.00011079,2]
[327158764,1715865039781,-580.41126174,0.00011079,2]
[327158766,1715865039792,-742.87,0.00011079,2]
[327158768,1715865039801,-742.87,0.00011079,2]